[Event "8th RTU Open 2018"]
[Site "Riga"]
[Date "2018.08.07"]
[Round "3"]
[White "Stocek, Jiri"]
[Black "Martin, Julian"]
[Result "1-0"]
[ECO "D85"]
[WhiteElo "2582"]
[BlackElo "2392"]
[Annotator "ChessBase"]
[PlyCount "106"]
[EventDate "2018.08.06"]
[EventType "swiss"]
[EventCountry "LAT"]
[SourceTitle "playchess.com"]
[Source "ChessBase"]
[SourceQuality "1"]
[TimeControl "5400+30"]

1. c4 {[%emt 0:00:03]} Nf6 {[%emt 0:02:28]} 2. Nc3 {[%emt 0:00:45]} g6 {[%emt 0:07:06]} 3. d4 {[%emt 0:05:32]} d5 {[%emt 0:00:53]} 4. cxd5 {[%emt 0:00:25]} Nxd5 {[%emt 0:00:07]} 5. e4 {[%emt 0:00:15]} Nxc3 {[%emt 0:00:06]} 6. bxc3 {[%emt 0:00:03]} Bg7 {[%emt 0:00:22]} 7. Nf3 {[%emt 0:01:14]} c5 {[%emt 0:00:21]} 8. Be3 {[%emt 0:00:27]} Bg4 {[%emt 0:07:05]} 9. Rc1 {[%emt 0:01:12]} cxd4 {[%emt 0:31:06]} 10. cxd4 {[%emt 0:00:36]} O-O {[%emt 0:07:39]} 11. Be2 {[%emt 0:06:31]} Qa5+ {[%emt 0:06:08]} 12. Qd2 {[%emt 0:02:07]} Qxd2+ {[%emt 0:01:35]} 13. Nxd2 {[%emt 0:00:57]} Bxe2 {[%emt 0:01:18]} 14. Kxe2 {[%emt 0:00:05]} e6 {[%emt 0:10:15]} 15. Rc7 {[%emt 0:16:06]} f5 {[%emt 0:03:34]} 16. Nf3 {[%emt 0:10:39]} Nc6 {[%emt 0:07:07]} 17. Rb1 {[%emt 0:07:29]} fxe4 {[%emt 0:02:29]} 18. Ng5 {[%emt 0:01:55]} Nxd4+ {[%emt 0:00:09]} 19. Ke1 {[%emt 0:00:30]} Be5 {[%emt 0:02:45]} 20. Rc5 {[%emt 0:02:10]} Bh8 {[%emt 0:01:04]} 21. Rxb7 {[%emt 0:01:50]} Rab8 {[%emt 0:01:35]} 22. Rxb8 {[%emt 0:06:58]} Rxb8 {[%emt 0:00:08]} 23. Nxe4 {[%emt 0:00:10]} Nf5 {[%emt 0:01:01]} 24. Bf4 {[%emt 0:02:32]} Rb1+ {[%emt 0:00:31]} 25. Kd2 {[%emt 0:04:14]} Bd4 {[%emt 0:01:51]} 26. Rc8+ {[%emt 0:06:10]} Kf7 {[%emt 0:01:07]} 27. Rc7+ {[%emt 0:06:01]} Ke8 {[%emt 0:01:01]} 28. Rxh7 {[%emt 0:01:51]} Rb4 {[%emt 0:02:04]} 29. g4 {[%emt 0:01:59]} Ng7 {[%emt 0:00:09]} 30. Kd3 {[%emt 0:02:10]} Kf7 {[%emt 0:00:30]} 31. Bd6 {[%emt 0:01:29]} Ra4 {[%emt 0:00:21]} 32. h4 {[%emt 0:01:57]} Kg8 {[%emt 0:00:11]} 33. Rh6 {[%emt 0:00:04]} Ne8 {[%emt 0:00:01]} 34. Rxg6+ {[%emt 0:02:40]} Kf7 {[%emt 0:00:06]} 35. h5 {[%emt 0:00:40]} Bf6 {[%emt 0:00:09]} 36. Bc5 {[%emt 0:03:02]} Rxa2 {[%emt 0:00:40]} 37. Nxf6 {[%emt 0:00:28]} Nxf6 {[%emt 0:00:21]} 38. Bd4 {[%emt 0:00:31]} Ra3+ {[%emt 0:00:47]} 39. Ke2 {[%emt 0:00:15]} Ne8 {[%emt 0:00:28]} 40. f3 {[%emt 0:01:28]} a5 {[%emt 0:00:20]} 41. Rh6 {[%emt 0:00:23]} Nd6 {[%emt 0:01:27]} 42. Rh7+ {[%emt 0:00:19]} Ke8 {[%emt 0:00:08]} 43. Rg7 {[%emt 0:01:10]} Ra2+ {[%emt 0:00:37]} 44. Ke3 {[%emt 0:00:16]} Ra3+ {[%emt 0:00:24]} 45. Kf2 {[%emt 0:00:18]} Nf7 {[%emt 0:00:43]} 46. Rg6 {[%emt 0:01:01]} Rd3 {[%emt 0:00:58]} 47. Rxe6+ {[%emt 0:00:56]} Kd7 {[%emt 0:00:08]} 48. Rf6 {[%emt 0:00:34]} Ke7 {[%emt 0:00:18]} 49. Rf4 {[%emt 0:00:07]} Ke6 {[%emt 0:00:32]} 50. Ke2 {[%emt 0:01:01]} Rb3 {[%emt 0:00:26]} 51. Rf6+ {[%emt 0:00:25]} Ke7 {[%emt 0:00:19]} 52. Ra6 {[%emt 0:00:31]} Rb5 {[%emt 0:00:50]} 53. h6 {[%emt 0:00:21]} Ng5 {[%emt 0:00:36]} 1-0

[Event "8th RTU Open 2018"]
[Site "Riga"]
[Date "2018.08.07"]
[Round "3"]
[White "Petrosyan, Manuel"]
[Black "Krupenski, Juri"]
[Result "1-0"]
[ECO "E11"]
[WhiteElo "2567"]
[BlackElo "2390"]
[Annotator "ChessBase"]
[PlyCount "39"]
[EventDate "2018.08.06"]
[EventType "swiss"]
[EventCountry "LAT"]
[SourceTitle "playchess.com"]
[Source "ChessBase"]
[SourceQuality "1"]
[TimeControl "5400+30"]

1. d4 {[%emt 0:00:00]} Nf6 {[%emt 0:00:00]} 2. c4 {[%emt 0:00:00]} e6 {[%emt 0:00:07]} 3. Nf3 {[%emt 0:00:02]} Bb4+ {[%emt 0:00:17]} 4. Nbd2 {[%emt 0:01:03]} O-O {[%emt 0:00:10]} 5. a3 {[%emt 0:00:18]} Be7 {[%emt 0:00:07]} 6. e4 {[%emt 0:00:31]} d6 {[%emt 0:00:06]} 7. Be2 {[%emt 0:00:19]} Nbd7 {[%emt 0:05:33]} 8. Qc2 {[%emt 0:00:20]} e5 {[%emt 0:01:01]} 9. Nb1 {[%emt 0:00:17]} a5 {[%emt 0:01:20]} 10. Nc3 {[%emt 0:00:20]} c6 {[%emt 0:01:45]} 11. O-O {[%emt 0:01:21]} Qb6 {[%emt 0:11:48]} 12. Rd1 {[%emt 0:06:38]} Qa7 {[%emt 0:01:57]} 13. b3 {[%emt 0:02:09]} Ne8 {[%emt 0:04:59]} 14. Be3 {[%emt 0:03:02]} Qb8 {[%emt 0:00:19]} 15. Rab1 {[%emt 0:05:24]} Ndf6 {[%emt 0:20:48]} 16. h3 {[%emt 0:03:22]} exd4 {[%emt 0:01:50]} 17. Nxd4 {[%emt 0:03:03]} d5 {[%emt 0:00:15]} 18. exd5 {[%emt 0:08:14]} cxd5 {[%emt 0:00:34]} 19. Qc1 {[%emt 0:05:05]} Nd6 {[%emt 0:15:59]} 20. Bf4 {[%emt 0:01:57]} 1-0

[Event "8th RTU Open 2018"]
[Site "Riga"]
[Date "2018.08.07"]
[Round "3"]
[White "Ter Sahakyan, Samvel"]
[Black "Gorbatov, Alexej"]
[Result "1/2-1/2"]
[ECO "C10"]
[WhiteElo "2551"]
[BlackElo "2389"]
[Annotator "ChessBase"]
[PlyCount "70"]
[EventDate "2018.08.06"]
[EventType "swiss"]
[EventCountry "LAT"]
[SourceTitle "playchess.com"]
[Source "ChessBase"]
[SourceQuality "1"]
[TimeControl "5400+30"]

1. e4 {[%emt 0:00:00]} e6 {[%emt 0:01:42]} 2. d4 {[%emt 0:00:00]} d5 {[%emt 0:00:06]} 3. Nc3 {[%emt 0:00:00]} dxe4 {[%emt 0:00:06]} 4. Nxe4 {[%emt 0:00:00]} Bd7 {[%emt 0:00:05]} 5. Nf3 {[%emt 0:01:43]} Bc6 {[%emt 0:00:11]} 6. Bd3 {[%emt 0:00:04]} Nd7 {[%emt 0:00:08]} 7. c3 {[%emt 0:01:54]} Ngf6 {[%emt 0:01:37]} 8. Nxf6+ {[%emt 0:01:43]} Nxf6 {[%emt 0:00:38]} 9. Bf4 {[%emt 0:04:24]} Bxf3 {[%emt 0:08:26]} 10. Qxf3 {[%emt 0:00:47]} c6 {[%emt 0:00:08]} 11. O-O {[%emt 0:08:44]} Qd5 {[%emt 0:01:00]} 12. Qe2 {[%emt 0:02:35]} Qh5 {[%emt 0:07:33]} 13. Qc2 {[%emt 0:02:47]} Rd8 {[%emt 0:11:20]} 14. Qb3 {[%emt 0:19:57]} Rd7 {[%emt 0:00:45]} 15. Rae1 {[%emt 0:02:15]} Qa5 {[%emt 0:01:14]} 16. Be5 {[%emt 0:03:56]} Qb6 {[%emt 0:21:55]} 17. Qxb6 {[%emt 0:09:36]} axb6 {[%emt 0:00:49]} 18. f4 {[%emt 0:00:11]} Bd6 {[%emt 0:04:37]} 19. f5 {[%emt 0:00:10]} Bxe5 {[%emt 0:00:22]} 20. Rxe5 {[%emt 0:00:08]} Re7 {[%emt 0:05:01]} 21. Rfe1 {[%emt 0:08:34]} Kd7 {[%emt 0:00:19]} 22. fxe6+ {[%emt 0:00:35]} fxe6 {[%emt 0:00:16]} 23. Bf5 {[%emt 0:00:10]} Rhe8 {[%emt 0:00:09]} 24. Bh3 {[%emt 0:00:05]} Kd6 {[%emt 0:03:21]} 25. g3 {[%emt 0:00:13]} Nd7 {[%emt 0:02:00]} 26. R5e2 {[%emt 0:04:00]} b5 {[%emt 0:02:02]} 27. Kf2 {[%emt 0:07:22]} Nb6 {[%emt 0:00:59]} 28. Ke3 {[%emt 0:00:30]} e5 {[%emt 0:06:24]} 29. Kd3 {[%emt 0:01:02]} exd4 {[%emt 0:00:11]} 30. Rxe7 {[%emt 0:00:14]} Rxe7 {[%emt 0:00:02]} 31. Rxe7 {[%emt 0:00:09]} Kxe7 {[%emt 0:00:04]} 32. Kxd4 {[%emt 0:00:11]} Kd6 {[%emt 0:00:04]} 33. Bf5 {[%emt 0:09:02]} h6 {[%emt 0:00:02]} 34. Bd3 {[%emt 0:02:23]} Nd7 {[%emt 0:01:16]} 35. b4 {[%emt 0:00:29]} Nf6 {[%emt 0:01:59] Ke4 Ke5+} 1/2-1/2

[Event "8th RTU Open 2018"]
[Site "Riga"]
[Date "2018.08.07"]
[Round "3"]
[White "Meskovs, Nikita"]
[Black "Sirosh, Ilja"]
[Result "*"]
[ECO "A05"]
[WhiteElo "2524"]
[BlackElo "2372"]
[Annotator "ChessBase"]
[PlyCount "28"]
[EventDate "2018.08.06"]
[EventType "swiss"]
[EventCountry "LAT"]
[SourceTitle "playchess.com"]
[Source "ChessBase"]
[SourceQuality "1"]
[TimeControl "5400+30"]

1. Nf3 Nf6 2. g3 g6 3. Bg2 Bg7 4. O-O c6 {[%emt 0:02:46]} 5. e4 {[%emt 0:01:28]} d5 {[%emt 0:00:15]} 6. Nc3 {[%emt 0:00:26]} dxe4 {[%emt 0:02:53]} 7. Nxe4 {[%emt 0:01:23]} Nxe4 {[%emt 0:00:00]} 8. Qe2 {[%emt 0:00:09]} Qd5 {[%emt 0:00:07]} 9. Qxe4 {[%emt 0:02:06]} Qe6 {[%emt 0:07:04]} 10. Qe3 {[%emt 0:06:14]} Qxe3 {[%emt 0:01:04]} 11. d4 {[%emt 0:00:17]} Bf5 {[%emt 0:00:16]} 12. Bxe3 {[%emt 0:03:29]} e6 {[%emt 0:00:37]} 13. c4 {[%emt 0:02:47]} Nd7 {[%emt 0:01:48]} 14. a3 {[%emt 0:13:01]} h6 {[%emt 0:03:11]} *

[Event "8th RTU Open 2018"]
[Site "Riga"]
[Date "2018.08.07"]
[Round "3"]
[White "Kjartansson, Gudmundur"]
[Black "Kusenkova, Natallia"]
[Result "1/2-1/2"]
[ECO "A06"]
[WhiteElo "2434"]
[BlackElo "2183"]
[Annotator "NA"]
[PlyCount "70"]
[EventDate "2018.08.06"]
[EventType "swiss"]
[EventCountry "LAT"]
[SourceTitle "playchess.com"]
[Source "ChessBase"]
[SourceQuality "1"]
[TimeControl "5400+30"]

1. Nf3 {[%emt 0:00:00]} d5 2. g3 Nf6 3. Bg2 e6 4. O-O Be7 5. c4 O-O 6. b3 c5 7. cxd5 exd5 8. d4 Nc6 9. Bb2 Be6 10. Nc3 Rc8 11. dxc5 Bxc5 12. Na4 Be7 13. Rc1 Qd6 14. Nc5 b6 15. Nxe6 fxe6 16. Nd4 Nxd4 17. Qxd4 Qd7 18. e4 Rxc1 19. Bxc1 Bc5 20. Qd1 Qf7 21. exd5 exd5 22. Qd3 Rd8 23. Bb2 d4 24. Re1 Kh8 25. Bc1 a5 26. Rd1 Nd5 27. Qc4 Qf5 28. Bxd5 Rxd5 29. Rd3 h6 30. a3 Rd8 31. b4 axb4 32. axb4 Bxb4 33. Rxd4 Rxd4 34. Qxd4 Bc5 35. Qd2 Kh7 1/2-1/2

[Event "8th RTU Open 2018"]
[Site "Riga"]
[Date "2018.08.07"]
[Round "3"]
[White "Pechac, Jergus"]
[Black "Bluebaum, Karl Ernst"]
[Result "1-0"]
[ECO "D31"]
[WhiteElo "2431"]
[BlackElo "2253"]
[Annotator "NA"]
[PlyCount "53"]
[EventDate "2018.08.06"]
[EventType "swiss"]
[EventCountry "LAT"]
[SourceTitle "playchess.com"]
[Source "ChessBase"]
[SourceQuality "1"]
[TimeControl "5400+30"]

1. d4 {[%emt 0:05:01]} d5 {[%emt 0:00:00]} 2. c4 {[%emt 0:00:07]} e6 {[%emt 0:00:00]} 3. Nc3 {[%emt 0:00:32]} Bb4 {[%emt 0:00:26]} 4. cxd5 {[%emt 0:00:33]} exd5 {[%emt 0:00:14]} 5. Bf4 {[%emt 0:00:05]} Nf6 {[%emt 0:04:54]} 6. e3 {[%emt 0:00:26]} O-O {[%emt 0:01:06]} 7. Rc1 {[%emt 0:10:56]} c6 {[%emt 0:24:53]} 8. Bd3 {[%emt 0:00:25]} Re8 {[%emt 0:01:08]} 9. h3 {[%emt 0:04:25]} Bd6 {[%emt 0:05:00]} 10. Nge2 {[%emt 0:01:28]} Bxf4 {[%emt 0:00:57]} 11. Nxf4 {[%emt 0:00:06]} Qd6 {[%emt 0:00:16]} 12. Qf3 {[%emt 0:06:41]} Nbd7 {[%emt 0:08:16]} 13. g4 {[%emt 0:00:17]} Nf8 {[%emt 0:09:29]} 14. g5 {[%emt 0:01:24]} N6d7 {[%emt 0:00:02]} 15. h4 {[%emt 0:01:03]} Ne6 {[%emt 0:03:20]} 16. Nce2 {[%emt 0:12:19]} Nxf4 {[%emt 0:15:57]} 17. Nxf4 {[%emt 0:00:07]} Rf8 {[%emt 0:02:48]} 18. Qg3 {[%emt 0:13:56]} f5 {[%emt 0:04:26]} 19. gxf6 {[%emt 0:03:21]} Nxf6 {[%emt 0:01:12]} 20. Rg1 {[%emt 0:01:00]} Qe7 {[%emt 0:06:16]} 21. h5 {[%emt 0:00:13]} Bg4 {[%emt 0:03:55]} 22. Qh4 {[%emt 0:02:51]} Qb4+ {[%emt 0:01:09]} 23. Kf1 {[%emt 0:00:50]} Qd2 {[%emt 0:02:43]} 24. Re1 {[%emt 0:08:30]} Bxh5 {[%emt 0:00:52]} 25. Bf5 {[%emt 0:00:29]} Bf3 {[%emt 0:02:33]} 26. Be6+ {[%emt 0:00:23]} Rf7 {[%emt 0:00:02]} 27. Qxf6 {[%emt 0:00:15]} 1-0

[Event "8th RTU Open 2018"]
[Site "Riga"]
[Date "2018.08.07"]
[Round "3"]
[White "Korchmar, Vasiliy"]
[Black "Jacobs, Florian"]
[Result "1-0"]
[ECO "A62"]
[WhiteElo "2415"]
[BlackElo "2255"]
[Annotator "NA"]
[PlyCount "63"]
[EventDate "2018.08.06"]
[EventType "swiss"]
[EventCountry "LAT"]
[SourceTitle "playchess.com"]
[Source "ChessBase"]
[SourceQuality "1"]
[TimeControl "5400+30"]

1. d4 {[%emt 0:00:00]} Nf6 {[%emt 0:00:00]} 2. c4 {[%emt 0:00:00]} e6 {[%emt 0:00:00]} 3. g3 {[%emt 0:00:00]} c5 {[%emt 0:00:00]} 4. d5 {[%emt 0:00:00]} exd5 {[%emt 0:00:00]} 5. cxd5 {[%emt 0:00:00]} d6 {[%emt 0:00:00]} 6. Nc3 {[%emt 0:00:00]} g6 {[%emt 0:00:05]} 7. Bg2 {[%emt 0:00:03]} Bg7 {[%emt 0:00:05]} 8. Nf3 {[%emt 0:00:04]} O-O {[%emt 0:00:08]} 9. O-O {[%emt 0:00:04]} a6 {[%emt 0:00:05]} 10. a4 {[%emt 0:00:05]} Nbd7 {[%emt 0:00:05]} 11. Bf4 {[%emt 0:00:06]} Qc7 {[%emt 0:00:29]} 12. Rc1 {[%emt 0:04:54]} Re8 {[%emt 0:04:54]} 13. h3 {[%emt 0:10:33]} Ne4 {[%emt 0:10:30]} 14. Nxe4 {[%emt 0:01:07]} Rxe4 {[%emt 0:00:05]} 15. Nd2 {[%emt 0:01:07]} Rxf4 {[%emt 0:01:18]} 16. gxf4 {[%emt 0:00:05]} Bxb2 {[%emt 0:00:06]} 17. Rb1 {[%emt 0:02:04]} Bg7 {[%emt 0:00:06]} 18. Nc4 {[%emt 0:03:28]} b6 {[%emt 0:10:53]} 19. Rb3 {[%emt 0:14:22]} Rb8 {[%emt 0:27:32]} 20. Qb1 {[%emt 0:00:07]} Rb7 {[%emt 0:00:41]} 21. Re1 {[%emt 0:06:52]} Qb8 {[%emt 0:06:25]} 22. e4 {[%emt 0:01:41]} Bd4 {[%emt 0:07:32]} 23. Re2 {[%emt 0:15:19]} Kg7 {[%emt 0:01:08]} 24. h4 {[%emt 0:00:59]} h5 {[%emt 0:03:03]} 25. Qe1 {[%emt 0:14:50]} Nf6 {[%emt 0:06:24]} 26. e5 {[%emt 0:04:47]} dxe5 {[%emt 0:00:45]} 27. fxe5 {[%emt 0:00:03]} Ng4 {[%emt 0:00:15]} 28. Nd6 {[%emt 0:01:04]} Bxe5 {[%emt 0:12:04]} 29. Nxb7 {[%emt 0:01:17]} Bxb7 {[%emt 0:00:50]} 30. Rxe5 {[%emt 0:01:28]} Nxe5 {[%emt 0:00:22]} 31. Rxb6 {[%emt 0:00:17]} Qc7 {[%emt 0:05:02]} 32. Rxb7 {[%emt 0:02:14]} 1-0

[Event "8th RTU Open 2018"]
[Site "Riga"]
[Date "2018.08.07"]
[Round "3"]
[White "Fenil, Shah"]
[Black "Povilaitis, Tomas"]
[Result "1/2-1/2"]
[ECO "D04"]
[WhiteElo "2412"]
[BlackElo "1804"]
[Annotator "NA"]
[PlyCount "39"]
[EventDate "2018.08.06"]
[EventType "swiss"]
[EventCountry "LAT"]
[SourceTitle "playchess.com"]
[Source "ChessBase"]
[SourceQuality "1"]
[TimeControl "5400+30"]

1. d4 {[%emt 0:00:00]} Nf6 {[%emt 0:04:09]} 2. Nf3 {[%emt 0:00:44]} d5 {[%emt 0:00:45]} 3. e3 {[%emt 0:03:19]} Bf5 {[%emt 0:01:12]} 4. c4 {[%emt 0:01:22]} e6 {[%emt 0:00:48]} 5. Nc3 {[%emt 0:00:11]} c6 {[%emt 0:00:11]} 6. Qb3 {[%emt 0:01:13]} Qb6 {[%emt 0:02:36]} 7. c5 {[%emt 0:07:24]} Qc7 {[%emt 0:01:37]} 8. Qa4 {[%emt 0:06:50]} Be7 {[%emt 0:04:22]} 9. b4 {[%emt 0:04:16]} O-O {[%emt 0:01:16]} 10. b5 Nbd7 {[%emt 0:01:13]} 11. Bb2 {[%emt 0:08:01]} h6 {[%emt 0:04:29]} 12. h3 {[%emt 0:01:44]} e5 {[%emt 0:11:48]} 13. Be2 {[%emt 0:03:28]} exd4 {[%emt 0:01:51]} 14. exd4 {[%emt 0:00:30]} Ne4 {[%emt 0:03:20]} 15. O-O {[%emt 0:04:04]} Ng5 {[%emt 0:01:59]} 16. Rfe1 {[%emt 0:08:17]} Rfe8 {[%emt 0:02:26]} 17. bxc6 {[%emt 0:03:25]} bxc6 {[%emt 0:01:01]} 18. Ba3 {[%emt 0:08:26]} Bf6 {[%emt 0:03:04]} 19. Rad1 {[%emt 0:06:19]} Re6 {[%emt 0:03:30]} 20. Bb4 {[%emt 0:14:51]} 1/2-1/2

[Event "8th RTU Open 2018"]
[Site "Riga"]
[Date "2018.08.07"]
[Round "3"]
[White "Seeman, Tarvo"]
[Black "Juknis, Paulius"]
[Result "1-0"]
[ECO "A04"]
[WhiteElo "2405"]
[BlackElo "2231"]
[Annotator "NA"]
[PlyCount "95"]
[EventDate "2018.08.06"]
[EventType "swiss"]
[EventCountry "LAT"]
[SourceTitle "playchess.com"]
[Source "ChessBase"]
[SourceQuality "1"]
[TimeControl "5400+30"]

1. Nf3 {[%emt 0:01:27]} c5 {[%emt 0:00:00]} 2. b3 {[%emt 0:01:22]} Nf6 {[%emt 0:01:31]} 3. Bb2 {[%emt 0:00:53]} e6 {[%emt 0:00:34]} 4. e3 {[%emt 0:02:01]} b6 {[%emt 0:07:35]} 5. d4 {[%emt 0:04:05]} Bb7 {[%emt 0:05:32]} 6. Bd3 {[%emt 0:00:11]} Be7 {[%emt 0:01:23]} 7. O-O {[%emt 0:01:41]} O-O {[%emt 0:00:34]} 8. Nbd2 {[%emt 0:03:23]} d6 {[%emt 0:02:55]} 9. c4 {[%emt 0:06:26]} Nbd7 {[%emt 0:09:38]} 10. Qe2 {[%emt 0:05:05]} Re8 {[%emt 0:03:30]} 11. Rad1 {[%emt 0:01:18]} Qc7 {[%emt 0:02:13]} 12. Bb1 {[%emt 0:06:20]} Nf8 {[%emt 0:03:38]} 13. Ng5 {[%emt 0:05:32]} cxd4 {[%emt 0:06:40]} 14. Bxd4 {[%emt 0:01:56]} e5 {[%emt 0:04:45]} 15. Bb2 {[%emt 0:00:08]} Ng6 {[%emt 0:03:34]} 16. Nde4 {[%emt 0:04:38]} Nxe4 {[%emt 0:10:37]} 17. Nxe4 {[%emt 0:00:09]} b5 {[%emt 0:00:38]} 18. cxb5 {[%emt 0:05:06]} d5 {[%emt 0:00:15]} 19. Ng3 {[%emt 0:04:44]} Qb6 {[%emt 0:03:48]} 20. Bxg6 {[%emt 0:01:21]} hxg6 {[%emt 0:00:31]} 21. Bxe5 {[%emt 0:00:10]} a6 {[%emt 0:00:16]} 22. Bd4 {[%emt 0:00:13]} Qxb5 {[%emt 0:00:29]} 23. Qb2 {[%emt 0:03:23]} f6 {[%emt 0:03:41]} 24. Rc1 {[%emt 0:07:25]} Qd7 {[%emt 0:08:00]} 25. Qc2 {[%emt 0:02:51]} Kf7 {[%emt 0:00:17]} 26. Qc7 {[%emt 0:00:37]} Rad8 {[%emt 0:02:04]} 27. Ne2 {[%emt 0:02:56]} Bd6 {[%emt 0:00:26]} 28. Qxd7+ {[%emt 0:00:11]} Rxd7 {[%emt 0:00:02]} 29. h3 {[%emt 0:00:49]} g5 {[%emt 0:01:02]} 30. Rfd1 {[%emt 0:01:36]} f5 {[%emt 0:01:16]} 31. Bc5 {[%emt 0:02:26]} Be5 {[%emt 0:00:32]} 32. Nd4 {[%emt 0:00:35]} f4 {[%emt 0:06:45]} 33. Nf3 {[%emt 0:00:22]} fxe3 {[%emt 0:00:55]} 34. Bxe3 {[%emt 0:00:29]} Bf4 {[%emt 0:01:08]} 35. Nxg5+ {[%emt 0:02:02]} Bxg5 {[%emt 0:00:06]} 36. Bxg5 {[%emt 0:00:05]} d4 {[%emt 0:00:28]} 37. Be3 {[%emt 0:01:59]} d3 {[%emt 0:01:03]} 38. Rc4 {[%emt 0:02:10]} Be4 {[%emt 0:03:15]} 39. Kh2 {[%emt 0:01:19]} Re6 {[%emt 0:01:59]} 40. Rd2 {[%emt 0:01:08]} Kf6 {[%emt 0:02:21]} 41. g4 {[%emt 0:00:52]} g6 {[%emt 0:01:18]} 42. Kg3 {[%emt 0:00:11]} Ke7 {[%emt 0:02:44]} 43. h4 {[%emt 0:00:20]} Kf7 {[%emt 0:00:49]} 44. Rd4 {[%emt 0:03:22]} Rxd4 {[%emt 0:00:15]} 45. Bxd4 {[%emt 0:00:06]} Rd6 {[%emt 0:00:27]} 46. Be5 {[%emt 0:01:52]} Rc6 {[%emt 0:00:53]} 47. f3 {[%emt 0:00:29]} Ke6 {[%emt 0:00:06]} 48. Bf4 1-0

[Event "8th RTU Open 2018"]
[Site "Riga"]
[Date "2018.08.07"]
[Round "3"]
[White "Lapshun, Yury"]
[Black "Kretainis, Kristaps"]
[Result "1-0"]
[ECO "E11"]
[WhiteElo "2403"]
[BlackElo "2235"]
[Annotator "NA"]
[PlyCount "81"]
[EventDate "2018.08.06"]
[EventType "swiss"]
[EventCountry "LAT"]
[SourceTitle "playchess.com"]
[Source "ChessBase"]
[SourceQuality "1"]
[TimeControl "5400+30"]

1. d4 {[%emt 0:12:04]} Nf6 {[%emt 0:00:00]} 2. c4 {[%emt 0:00:07]} e6 {[%emt 0:00:00]} 3. Nf3 {[%emt 0:00:11]} Bb4+ {[%emt 0:00:00]} 4. Bd2 {[%emt 0:00:15]} Bxd2+ {[%emt 0:00:00]} 5. Nbxd2 {[%emt 0:00:15]} d5 {[%emt 0:00:00]} 6. e3 {[%emt 0:00:08]} O-O {[%emt 0:00:00]} 7. Be2 {[%emt 0:00:17]} Nbd7 {[%emt 0:01:48]} 8. Rc1 {[%emt 0:00:36]} c6 {[%emt 0:00:04]} 9. O-O {[%emt 0:00:14]} Qe7 {[%emt 0:00:06]} 10. Ne5 {[%emt 0:01:21]} Nxe5 {[%emt 0:00:27]} 11. dxe5 {[%emt 0:00:03]} Nd7 {[%emt 0:00:05]} 12. f4 {[%emt 0:00:12]} Rd8 {[%emt 0:04:23]} 13. Qc2 {[%emt 0:01:22]} Nf8 {[%emt 0:02:48]} 14. e4 {[%emt 0:01:28]} f6 {[%emt 0:08:52]} 15. exf6 {[%emt 0:00:39]} gxf6 {[%emt 0:00:05]} 16. Rce1 {[%emt 0:04:49]} d4 {[%emt 0:00:18]} 17. e5 {[%emt 0:00:51]} f5 {[%emt 0:01:31]} 18. c5 {[%emt 0:00:19]} Rb8 {[%emt 0:04:50]} 19. b4 {[%emt 0:05:59]} b5 {[%emt 0:00:20]} 20. Rd1 {[%emt 0:00:39]} Rb7 {[%emt 0:02:28]} 21. Nb3 {[%emt 0:00:27]} Rbd7 {[%emt 0:01:04]} 22. Rd3 {[%emt 0:00:18]} Ng6 {[%emt 0:00:41]} 23. g3 {[%emt 0:01:54]} Qg7 {[%emt 0:00:34]} 24. Qd2 {[%emt 0:00:21]} Ne7 {[%emt 0:00:21]} 25. Bf3 {[%emt 0:03:55]} Rd5 {[%emt 0:03:21]} 26. Bxd5 {[%emt 0:02:38]} Rxd5 {[%emt 0:00:20]} 27. Nxd4 {[%emt 0:00:48]} Bd7 {[%emt 0:00:23]} 28. a4 {[%emt 0:00:21]} bxa4 {[%emt 0:00:49]} 29. Ra1 {[%emt 0:00:04]} Qf8 {[%emt 0:03:29]} 30. Rxa4 {[%emt 0:00:28]} Qb8 {[%emt 0:00:45]} 31. Rda3 {[%emt 0:03:30]} Bc8 {[%emt 0:00:30]} 32. Rxa7 {[%emt 0:00:57]} Bb7 {[%emt 0:00:04]} 33. R7a5 {[%emt 0:06:58]} Qd8 {[%emt 0:00:46]} 34. Rd3 {[%emt 0:00:14]} Qc8 {[%emt 0:00:12]} 35. Qa2 {[%emt 0:01:07]} Kf7 {[%emt 0:01:23]} 36. Qc4 {[%emt 0:00:13]} Kg6 {[%emt 0:00:31]} 37. Kf2 {[%emt 0:00:44]} h5 {[%emt 0:01:39]} 38. Ra7 {[%emt 0:01:10]} Qb8 {[%emt 0:00:23]} 39. Rda3 {[%emt 0:01:24]} Nc8 {[%emt 0:01:05]} 40. R7a5 {[%emt 0:00:46]} Kf7 {[%emt 0:00:13]} 41. b5 {[%emt 0:01:04]} 1-0

[Event "8th RTU Open 2018"]
[Site "Riga"]
[Date "2018.08.07"]
[Round "3"]
[White "Miedema, David"]
[Black "Volotovsky, Kirill"]
[Result "1-0"]
[ECO "E04"]
[WhiteElo "2397"]
[BlackElo "2228"]
[Annotator "NA"]
[PlyCount "75"]
[EventDate "2018.08.06"]
[EventType "swiss"]
[EventCountry "LAT"]
[SourceTitle "playchess.com"]
[Source "ChessBase"]
[SourceQuality "1"]
[TimeControl "5400+30"]

1. d4 {[%emt 0:00:00]} Nf6 {[%emt 0:00:00]} 2. c4 {[%emt 0:00:00]} e6 {[%emt 0:00:06]} 3. Nf3 {[%emt 0:00:00]} d5 {[%emt 0:00:29]} 4. g3 {[%emt 0:00:00]} dxc4 {[%emt 0:04:31]} 5. Bg2 {[%emt 0:00:02]} Bb4+ {[%emt 0:00:43]} 6. Bd2 {[%emt 0:00:06]} a5 {[%emt 0:00:19]} 7. O-O {[%emt 0:09:53]} b5 {[%emt 0:05:10]} 8. a4 {[%emt 0:07:23]} Bxd2 {[%emt 0:02:31]} 9. Nfxd2 {[%emt 0:00:41]} Ra7 {[%emt 0:02:25]} 10. Na3 {[%emt 0:00:27]} b4 {[%emt 0:03:37]} 11. Nb5 {[%emt 0:00:16]} Ra6 {[%emt 0:00:45]} 12. Nxc4 {[%emt 0:00:07]} O-O {[%emt 0:02:31]} 13. Rc1 {[%emt 0:03:18]} Ne8 {[%emt 0:07:35]} 14. Ne5 {[%emt 0:00:19]} Bd7 {[%emt 0:01:53]} 15. d5 {[%emt 0:01:56]} Bxb5 {[%emt 0:07:20]} 16. axb5 {[%emt 0:00:06]} Rd6 {[%emt 0:00:24]} 17. Nc4 {[%emt 0:01:19]} Rd7 {[%emt 0:00:27]} 18. Ne5 {[%emt 0:01:06]} Rd6 {[%emt 0:00:25]} 19. Nc4 {[%emt 0:00:05]} Rd7 {[%emt 0:00:04]} 20. Nxa5 {[%emt 0:00:05]} exd5 {[%emt 0:01:05]} 21. Qd4 {[%emt 0:01:55]} Qe7 {[%emt 0:03:26]} 22. e3 {[%emt 0:02:31]} Nf6 {[%emt 0:02:53]} 23. Rc2 {[%emt 0:07:06]} Ne4 {[%emt 0:06:00]} 24. Rfc1 {[%emt 0:03:22]} f5 {[%emt 0:07:23]} 25. Nb3 {[%emt 0:00:31]} Rf7 {[%emt 0:01:48]} 26. Qa7 {[%emt 0:01:16]} Qd8 {[%emt 0:01:17]} 27. Qd4 {[%emt 0:00:38]} Qe7 {[%emt 0:02:00]} 28. Nc5 {[%emt 0:00:15]} Rd8 {[%emt 0:00:44]} 29. Qxb4 {[%emt 0:04:35]} Nd7 {[%emt 0:03:09]} 30. Nd3 {[%emt 0:00:16]} Rb8 {[%emt 0:01:10]} 31. Qd4 {[%emt 0:02:50]} Rxb5 {[%emt 0:01:52]} 32. Rxc7 {[%emt 0:00:08]} Qd6 {[%emt 0:05:29]} 33. R1c6 {[%emt 0:00:41]} Qe7 {[%emt 0:01:48]} 34. b4 {[%emt 0:01:08]} Kh8 {[%emt 0:04:01]} 35. Rxd7 {[%emt 0:04:33]} Qxd7 {[%emt 0:01:12]} 36. Ne5 {[%emt 0:00:04]} Qxc6 {[%emt 0:00:59]} 37. Nxc6 {[%emt 0:00:08]} Rc7 {[%emt 0:00:24]} 38. Bf1 {[%emt 0:00:31]} 1-0